bitfinex/quotes_BTCUSD_20210402
["timestamp","ask_amount","ask_price","bid_price","bid_amount"]
[1617385964345,0.01111,59182.0,59181.0,1.817872]
[1617385964946,0.01111,59182.0,59181.0,1.789872]
[1617385965151,0.30697971,59206.0,59184.0,0.34820248]
[1617385965366,0.05,59209.0,59184.0,0.40298098]
[1617385965565,0.2534,59201.0,59187.0,0.00303724]
[1617385965967,0.09735427,59200.0,59187.0,0.00303724]
[1617385966168,0.09735427,59200.0,59187.0,2.51307476]
[1617385966369,0.77292427,59200.0,59187.0,2.51307476]
[1617385966567,0.77292427,59200.0,59187.0,1.40298098]
[1617385966772,0.77292427,59200.0,59187.0,1.00303724]
[1617385966971,0.09312872,59199.0,59187.0,1.40298098]
[1617385967171,0.15,59198.0,59187.0,1.00303724]
[1617385967368,0.76869872,59199.0,59187.0,1.00303724]
[1617385967571,0.70890447,59214.0,59189.0,0.34820248]
[1617385967572,0.18173823,59213.0,59189.0,0.34820248]
[1617385967771,0.1,59212.0,59190.0,0.39994374]
[1617385968005,0.1,59212.0,59191.0,0.00303724]
[1617385968202,0.353374,59212.0,59199.0,0.253374]
[1617385968403,0.145,59211.0,59200.0,0.00303724]
[1617385968600,0.82054,59211.0,59199.0,0.253374]
[1617385969001,0.36,59210.0,59199.0,0.253374]
[1617385969200,1.03554,59210.0,59199.0,0.253374]
[1617385970204,0.67554,59210.0,59199.0,0.253374]
[1617385972010,0.63804,59210.0,59199.0,0.253374]
[1617385972804,0.367226,59206.0,59199.0,0.253374]
[1617385973005,0.155,59205.0,59199.0,0.253374]
[1617385973246,0.38735,59202.0,59199.0,0.253374]
[1617385973448,1.02539,59202.0,59200.0,2.14669201]
[1617385973648,1.02539,59202.0,59201.0,0.27]
[1617385973847,1.02539,59202.0,59199.0,0.253374]
[1617385974048,1.00775358,59202.0,59199.0,0.253374]
[1617385975847,0.63804,59202.0,59199.0,0.253374]
[1617385978659,0.63304,59202.0,59199.0,0.253374]
[1617385980463,0.387301,59200.0,59199.0,0.253374]
[1617385980662,1.020341,59200.0,59199.0,0.253374]
[1617385983086,0.63304,59200.0,59199.0,0.253374]
[1617385983290,0.00397923,59213.0,59200.0,0.00303724]
[1617385983493,0.00397923,59213.0,59201.0,0.295]
[1617385983717,0.00397923,59213.0,59202.0,0.00303724]
[1617385983915,0.00397923,59213.0,59203.0,0.253354]
[1617385984113,0.67950923,59213.0,59203.0,0.253354]
[1617385984520,0.67950923,59213.0,59204.0,0.295]
[1617385984721,0.67950923,59213.0,59205.0,0.12574884]
[1617385984916,0.67950923,59213.0,59205.0,0.52569258]
[1617385985120,0.67950923,59213.0,59205.0,0.12574884]
[1617385985600,0.06238725,59226.0,59206.0,3.51]
[1617385985794,0.06238725,59226.0,59207.0,0.93579434]
[1617385985994,0.00768297,59212.0,59208.0,0.253322]
[1617385986340,0.68322297,59212.0,59208.0,0.59794374]
[1617385986489,0.68322297,59212.0,59210.0,0.39994374]
[1617385986889,0.68322297,59212.0,59211.0,3.524]
[1617385987094,0.68322297,59212.0,59211.0,4.92394374]
[1617385987289,0.67822297,59212.0,59211.0,5.14394374]
[1617385987691,0.67822297,59212.0,59211.0,1.454]
[1617385987890,0.67822297,59212.0,59211.0,0.454]
[1617385988089,0.67822297,59212.0,59211.0,3.924]
[1617385988290,0.67322297,59212.0,59211.0,4.32394374]
[1617385988489,0.67322297,59212.0,59211.0,5.42894374]
[1617385988693,0.67322297,59212.0,59211.0,5.52894374]
[1617385988890,0.67322297,59212.0,59211.0,5.07994374]
[1617385989090,0.67322297,59212.0,59211.0,5.12994374]
[1617385989288,0.67322297,59212.0,59211.0,5.36394374]
[1617385989490,0.67322297,59212.0,59211.0,5.81536374]
[1617385990087,0.67322297,59212.0,59211.0,6.02236374]
[1617385990490,0.67322297,59212.0,59211.0,6.06236374]
[1617385991489,0.67322297,59212.0,59211.0,5.99994374]
[1617385991693,0.67322297,59212.0,59211.0,5.91637374]
[1617385992093,0.67322297,59212.0,59211.0,5.71937374]
[1617385992897,0.67322297,59212.0,59211.0,5.75937374]
[1617385993294,0.66822297,59212.0,59211.0,5.75937374]
[1617385993495,0.66822297,59212.0,59211.0,5.41394374]
[1617385993696,0.66822297,59212.0,59211.0,5.45394374]
[1617385994308,1.28784517,59212.0,59211.0,5.45394374]
[1617385994911,1.28784517,59212.0,59211.0,5.41394374]
[1617385995910,1.28784517,59212.0,59211.0,5.57194374]
[1617385996511,1.28784517,59212.0,59211.0,5.12994374]
[1617385996712,1.28784517,59212.0,59211.0,5.28994374]
[1617385996937,1.28784517,59212.0,59211.0,5.52394374]
[1617385997138,1.28784517,59212.0,59211.0,1.90394374]
[1617385997537,1.28784517,59212.0,59211.0,0.614]
[1617385998139,1.28784517,59212.0,59211.0,2.50394374]
[1617385998545,1.28784517,59212.0,59211.0,0.86994374]
[1617385998745,1.71822357,59212.0,59202.0,0.00303724]
[1617385998944,1.71822357,59212.0,59194.0,0.00303724]
[1617385999142,0.39,59211.0,59195.0,0.233]
[1617385999341,0.39,59211.0,59197.0,0.22]
[1617385999342,1.05822297,59211.0,59197.0,0.22]
[1617385999575,1.05822297,59211.0,59198.0,0.00303724]
[1617385999779,0.34965,59210.0,59199.0,0.233]
[1617385999979,1.39787297,59210.0,59199.0,0.233]
[1617386000879,1.39787297,59210.0,59199.0,0.453]
[1617386001079,0.41,59209.0,59199.0,0.453]
[1617386001281,1.07822297,59209.0,59200.0,0.1]
[1617386001678,1.07822297,59209.0,59197.0,0.253351]
[1617386001880,1.07822297,59209.0,59194.0,0.10303724]
[1617386001881,0.41,59208.0,59194.0,0.00303724]
[1617386002121,1.07822297,59208.0,59193.0,0.00303724]
[1617386002325,0.41,59207.0,59193.0,0.00303724]
[1617386002722,1.07822297,59207.0,59193.0,0.00303724]
[1617386003120,1.07822297,59207.0,59194.0,1.0]
[1617386003323,1.07822297,59207.0,59195.0,0.00303724]
[1617386003720,1.75489225,59205.0,59195.0,0.00303724]
[1617386003925,0.41,59204.0,59194.0,1.0]
[1617386004122,0.41,59203.0,59194.0,1.0]
[1617386004523,1.07822297,59203.0,59194.0,1.0]
[1617386005125,0.253396,59201.0,59194.0,1.0]
[1617386005326,0.245,59200.0,59194.0,1.0]
[1617386005524,0.41,59199.0,59194.0,1.0]
[1617386005723,1.07822297,59199.0,59194.0,1.0]
[1617386005928,0.66822297,59199.0,59194.0,1.0]
[1617386008142,0.66822297,59199.0,59191.0,1.0]
[1617386010565,0.66822297,59199.0,59192.0,0.1]
[1617386010763,0.66822297,59199.0,59192.0,0.10303724]
[1617386010964,0.66822297,59199.0,59193.0,0.215]
[1617386011165,0.66822297,59199.0,59193.0,0.265]
[1617386012362,0.66822297,59199.0,59193.0,0.215]
[1617386012617,0.66822297,59199.0,59194.0,0.23]
[1617386013014,0.66822297,59199.0,59195.0,0.13]
[1617386013216,0.66822297,59199.0,59195.0,0.23]
[1617386013417,0.66822297,59199.0,59198.0,2.45]
[1617386013821,0.66822297,59199.0,59198.0,2.58]
[1617386014016,0.66822297,59199.0,59198.0,1.13]
[1617386014214,0.66822297,59199.0,59198.0,1.425]
[1617386014418,0.66822297,59199.0,59198.0,1.575]
[1617386014617,0.66822297,59199.0,59198.0,1.695]
[1617386016522,0.66822297,59199.0,59198.0,1.575]
[1617386017321,0.66322297,59199.0,59198.0,1.575]
[1617386017524,0.66322297,59199.0,59198.0,1.695]
[1617386018365,0.66322297,59199.0,59198.0,0.695]
[1617386018967,0.66322297,59199.0,59198.0,0.4]
[1617386021571,0.66322297,59199.0,59198.0,0.535]
[1617386023796,0.66322297,59199.0,59198.0,1.355]
[1617386023996,0.66322297,59199.0,59198.0,1.23274638]
[1617386024198,0.66322297,59199.0,59198.0,1.35274638]
[1617386024799,0.66322297,59199.0,59198.0,0.53274638]
[1617386025398,0.66322297,59199.0,59198.0,0.58274638]
[1617386025824,0.66322297,59199.0,59198.0,1.69274638]
[1617386026021,0.66322297,59199.0,59198.0,0.58274638]
[1617386026823,0.66322297,59199.0,59198.0,2.11274638]
[1617386027619,0.66322297,59199.0,59198.0,2.27474638]
[1617386028019,0.66322297,59199.0,59198.0,2.02474638]
[1617386028658,0.66322297,59199.0,59198.0,0.49474638]
[1617386029462,0.66322297,59199.0,59198.0,0.19774638]
[1617386029859,0.66322297,59199.0,59198.0,1.30106738]
[1617386030259,0.66322297,59199.0,59198.0,1.40106738]
[1617386030770,0.66322297,59199.0,59198.0,2.67106738]
[1617386031169,0.66322297,59199.0,59198.0,1.64106738]
[1617386031972,0.66322297,59199.0,59198.0,1.35106738]
[1617386034394,0.66322297,59199.0,59198.0,0.40106738]
[1617386035397,0.66322297,59199.0,59198.0,0.253321]
[1617386035601,0.76322297,59199.0,59195.0,0.337771]
[1617386035796,0.76322297,59199.0,59189.0,0.00303724]
[1617386036427,0.76322297,59199.0,59184.0,0.00303724]
[1617386036625,0.66322297,59199.0,59185.0,0.03826219]
[1617386036828,0.66322297,59199.0,59186.0,0.00303724]
[1617386037025,0.66269795,59199.0,59186.0,0.00303724]
[1617386037226,0.66269795,59199.0,59187.0,0.03827044]
[1617386037427,0.66269795,59199.0,59188.0,0.00303724]
[1617386037828,0.91609795,59199.0,59189.0,0.03827876]
[1617386038030,0.145,59198.0,59189.0,0.03827876]
[1617386038228,0.80769795,59198.0,59189.0,0.03827876]
[1617386038430,0.80769795,59198.0,59188.0,0.154]
[1617386038635,0.80769795,59198.0,59188.0,0.204]
[1617386039043,0.80769795,59198.0,59189.0,0.145]
[1617386039044,0.66269795,59198.0,59189.0,0.145]
[1617386039243,0.66269795,59198.0,59194.0,1.0]
[1617386039647,0.64765795,59198.0,59194.0,1.0]
[1617386039846,0.64765795,59198.0,59195.0,0.1]
[1617386040244,0.135,59197.0,59195.0,0.1]
[1617386040445,0.59014,59197.0,59195.0,0.1]
[1617386040643,1.23779795,59197.0,59195.0,0.1]
[1617386041243,1.06,59196.0,59195.0,0.1]
[1617386041468,1.35444795,59196.0,59195.0,0.1]
[1617386041868,1.70409795,59196.0,59195.0,0.1]
[1617386043271,1.70409795,59196.0,59194.0,1.0]
[1617386043470,0.375,59195.0,59194.0,1.0]
[1617386043669,1.02265795,59195.0,59194.0,1.0]
[1617386043872,1.02265795,59195.0,59194.0,1.1]
[1617386044296,1.02265795,59195.0,59194.0,0.1]
[1617386044697,1.01765795,59195.0,59194.0,0.1]
[1617386044897,1.01765795,59195.0,59192.0,0.1]
[1617386047431,0.28,59194.0,59192.0,0.1]
[1617386047632,0.92765795,59194.0,59192.0,0.1]
[1617386047834,1.33684795,59194.0,59192.0,0.1]
[1617386049647,0.325,59193.0,59192.0,0.15]
[1617386049848,0.97265795,59193.0,59190.0,0.1]
[1617386050048,0.245,59192.0,59190.0,0.1]
[1617386050251,0.89265795,59192.0,59190.0,0.1]
[1617386052273,0.89265795,59192.0,59185.0,0.1]
[1617386052473,0.205,59191.0,59185.0,0.105]
[1617386052675,0.85265795,59191.0,59185.0,0.105]
[1617386052875,0.86013515,59191.0,59185.0,0.105]
[1617386053474,0.65513515,59191.0,59185.0,0.105]
[1617386053674,0.65513515,59191.0,59186.0,0.208]
[1617386053873,0.65513515,59191.0,59186.0,0.258]
[1617386054075,0.65513515,59191.0,59188.0,0.253383]
[1617386054276,0.65513515,59191.0,59189.0,0.1]
[1617386054478,0.65513515,59191.0,59189.0,0.42]
[1617386054695,0.65513515,59191.0,59190.0,1.55]
[1617386054897,0.65513515,59191.0,59190.0,1.545]
[1617386055096,0.65513515,59191.0,59190.0,1.595]
[1617386055496,0.65513515,59191.0,59190.0,0.145]
[1617386055697,0.65513515,59191.0,59190.0,0.095]
[1617386055901,0.82513515,59191.0,59190.0,0.095]
[1617386056099,0.82513515,59191.0,59190.0,0.253379]
[1617386056497,0.82513515,59191.0,59190.0,0.303379]
[1617386056695,0.82513515,59191.0,59190.0,0.403379]
[1617386057334,3.91513515,59191.0,59190.0,0.1]
[1617386057536,3.91513515,59191.0,59168.0,0.04303724]
[1617386057537,3.91513515,59191.0,59179.0,0.00303724]
[1617386057732,3.91513515,59191.0,59171.0,0.04]
[1617386057733,0.5,59190.0,59171.0,0.04]
[1617386057932,1.04765795,59190.0,59174.0,0.004]
[1617386058329,0.34965,59189.0,59175.0,1.0253]
[1617386058530,1.15478616,59189.0,59176.0,0.253435]
[1617386058730,0.4,59188.0,59176.0,0.253435]
[1617386058930,0.4,59188.0,59177.0,0.03100002]
[1617386059130,1.04765795,59188.0,59177.0,0.03100002]
[1617386059330,0.285,59187.0,59177.0,0.03100002]
[1617386059527,0.93265795,59187.0,59177.0,0.03100002]
[1617386059982,0.93265795,59187.0,59180.0,1.0]
[1617386060184,0.93265795,59187.0,59181.0,0.1]
[1617386060378,0.92765795,59187.0,59181.0,0.1]
[1617386060580,0.395,59186.0,59181.0,0.1]
[1617386060846,1.04265795,59186.0,59181.0,0.1]
[1617386061054,1.04265795,59186.0,59173.0,0.25345]
[1617386061055,1.2,59183.0,59173.0,0.25345]
[1617386061258,1.2,59183.0,59138.0,0.16]
[1617386061259,0.72009044,59180.0,59138.0,0.16]
[1617386061461,0.92842214,59168.0,59143.0,0.07451059]
[1617386061662,2.7,59156.0,59120.0,0.0002]
[1617386061860,2.7,59156.0,59137.0,0.167]
[1617386061861,0.126848,59151.0,59137.0,0.167]
[1617386062054,0.23752748,59139.0,59120.0,0.0002]
[1617386062258,0.253668,59130.0,59120.0,0.1122]
[1617386062512,0.253668,59130.0,59121.0,0.161]
[1617386062713,0.195,59129.0,59121.0,1.1488]
[1617386062912,0.195,59129.0,59121.0,0.163]
[1617386063111,0.84265795,59129.0,59121.0,0.163]
[1617386063309,0.64765795,59129.0,59121.0,0.163]
[1617386063710,0.64765795,59129.0,59123.0,0.163]
[1617386063911,0.64765795,59129.0,59123.0,0.315]
[1617386064112,0.64765795,59129.0,59124.0,0.161]
[1617386064308,0.64765795,59129.0,59124.0,0.263]
[1617386064309,0.00748535,59128.0,59124.0,0.263]
[1617386064510,0.00748535,59128.0,59124.0,0.313]
[1617386064711,0.6551433,59128.0,59127.0,0.166]
[1617386064913,0.6551433,59128.0,59127.0,0.216]
[1617386065312,0.6551433,59128.0,59127.0,0.366]
[1617386065510,0.6551433,59128.0,59127.0,0.527]
[1617386065710,0.6551433,59128.0,59127.0,0.627]
[1617386065912,0.6551433,59128.0,59127.0,0.472]
[1617386066511,0.6551433,59128.0,59127.0,0.306]
[1617386066712,0.6551433,59128.0,59127.0,0.356]
[1617386066912,0.6551433,59128.0,59127.0,0.456]
[1617386068135,0.6551433,59128.0,59120.0,0.0002]
[1617386068339,1.1321933,59128.0,59120.0,0.0022]
[1617386068738,0.2,59127.0,59121.0,0.161]
[1617386068933,0.5,59126.0,59121.0,0.161]
[1617386069132,0.84765795,59127.0,59121.0,0.163]
[1617386069335,0.64765795,59127.0,59121.0,0.313]
[1617386069934,0.34965,59126.0,59121.0,0.313]
[1617386070138,0.35713561,59126.0,59121.0,0.313]
[1617386070359,1.00479356,59126.0,59122.0,0.1]
[1617386070560,1.00479356,59126.0,59123.0,0.161]
[1617386070760,1.00479356,59126.0,59123.0,0.163]
[1617386071363,1.00479356,59126.0,59124.0,0.163]
[1617386071764,1.00479356,59126.0,59124.0,0.265]
[1617386071961,1.00479356,59126.0,59125.0,0.162]
[1617386072164,1.00479356,59126.0,59125.0,0.314]
[1617386072363,1.00479356,59126.0,59125.0,0.414]
[1617386072563,0.47595706,59125.0,59124.0,0.163]
[1617386072765,1.12361501,59125.0,59124.0,0.163]
[1617386072980,1.12361501,59125.0,59124.0,0.165]
[1617386073180,1.12361501,59125.0,59124.0,0.213]
[1617386073380,1.12361501,59125.0,59124.0,0.243]
[1617386074189,1.12361501,59125.0,59124.0,2.313]
[1617386074383,1.12361501,59125.0,59124.0,2.413]
[1617386074582,1.12361501,59125.0,59124.0,2.998]
[1617386075608,1.13110055,59125.0,59124.0,3.9838]
[1617386075810,1.13110055,59125.0,59124.0,3.288]
[1617386076037,0.74110055,59125.0,59124.0,6.35799]
[1617386076229,0.74110055,59125.0,59124.0,6.84793374]
[1617386076435,0.74110055,59125.0,59124.0,7.10153074]
[1617386076635,0.74110055,59125.0,59124.0,6.93353074]
[1617386076834,0.74110055,59125.0,59124.0,7.32080774]
[1617386077829,0.74110055,59125.0,59124.0,7.77745774]
[1617386079856,0.74110055,59125.0,59124.0,7.80745774]
[1617386080655,0.74110055,59125.0,59124.0,6.82165774]
[1617386080856,0.74110055,59125.0,59124.0,6.33500774]
[1617386081058,0.74110055,59125.0,59124.0,7.22461774]
[1617386081460,0.72345512,59125.0,59124.0,7.22461774]
[1617386081662,0.72345512,59125.0,59124.0,7.22546341]
[1617386082259,0.72345512,59125.0,59124.0,6.23966341]
[1617386082864,0.72345512,59125.0,59124.0,5.55966341]
[1617386083062,0.72345512,59125.0,59124.0,5.59966341]
[1617386085476,0.72345512,59125.0,59124.0,6.23966341]
[1617386085878,0.72345512,59125.0,59124.0,7.65581341]
[1617386086506,0.72345512,59125.0,59124.0,6.67001341]
[1617386086906,0.72345512,59125.0,59124.0,6.73071341]
[1617386088106,0.72345512,59125.0,59124.0,7.71651341]
[1617386088512,0.72345512,59125.0,59124.0,7.87618341]
[1617386088736,0.03365512,59125.0,59124.0,7.87618341]
[1617386089133,0.03365512,59125.0,59124.0,8.17618341]
[1617386090135,0.03365512,59125.0,59124.0,7.87618341]
[1617386090335,0.03365512,59125.0,59124.0,7.23618341]
[1617386090532,0.03365512,59125.0,59124.0,7.10651341]
[1617386090974,0.03365512,59125.0,59124.0,7.14651341]
[1617386091175,0.03365512,59125.0,59124.0,7.10151341]
[1617386091675,0.03365512,59125.0,59124.0,7.64151341]
[1617386091875,0.03365512,59125.0,59124.0,7.79151341]
[1617386092075,0.03365512,59125.0,59124.0,7.12151341]
[1617386092473,0.03365512,59125.0,59124.0,6.95351341]
[1617386093075,0.03365512,59125.0,59124.0,6.98351341]
[1617386093274,0.03365512,59125.0,59124.0,7.62351341]
[1617386099437,0.03365512,59125.0,59124.0,6.63771341]
[1617386099633,0.06522343,59152.0,59126.0,0.36224026]
[1617386099836,0.06522343,59152.0,59139.0,0.52637485]
[1617386100039,0.06522343,59152.0,59140.0,0.39894374]
[1617386100235,0.67622,59152.0,59140.0,0.104]
[1617386100437,0.06523757,59153.0,59138.0,0.338048]
[1617386100438,0.67622,59144.0,59138.0,0.338048]
[1617386100640,0.67622,59144.0,59132.0,0.73299174]
[1617386100838,0.67622,59144.0,59137.0,0.253583]
[1617386101240,0.67622,59144.0,59130.0,1.39494374]
[1617386101438,0.67622,59144.0,59130.0,1.0]
[1617386101439,0.41910538,59143.0,59130.0,1.0]
[1617386101641,0.245,59143.0,59130.0,1.0]
[1617386101863,0.92122,59143.0,59130.0,0.17165047]
[1617386102064,0.08638854,59142.0,59130.0,0.17165047]
[1617386102465,0.29,59141.0,59130.0,0.17165047]
[1617386102669,0.96622,59141.0,59130.0,0.17165047]
[1617386102866,0.165,59140.0,59130.0,0.17165047]
[1617386103063,0.84122,59140.0,59130.0,0.17165047]
[1617386103465,0.67622,59140.0,59130.0,0.22165047]
[1617386103867,0.67122,59140.0,59130.0,0.22165047]
[1617386104882,1.33236983,59140.0,59130.0,0.22165047]
[1617386105081,1.02966,59140.0,59130.0,0.22165047]
[1617386105286,0.54465,59139.0,59130.0,0.22165047]
[1617386105483,1.21587,59139.0,59130.0,0.17165047]
[1617386106108,1.02087,59139.0,59130.0,0.42526047]
[1617386106306,1.02087,59139.0,59133.0,1.0]
[1617386106906,1.02087,59139.0,59133.0,1.05]
[1617386107136,1.02087,59139.0,59134.0,0.1]
[1617386107338,0.67122,59139.0,59134.0,0.533597]
[1617386107736,0.67122,59139.0,59134.0,0.583597]
[1617386107940,0.67122,59139.0,59135.0,0.22]
[1617386108136,0.67122,59139.0,59135.0,0.607277]
[1617386108338,0.67122,59139.0,59136.0,0.1]
[1617386108536,0.67122,59139.0,59136.0,0.095]
[1617386108737,0.67122,59139.0,59136.0,0.34859]
[1617386109137,0.67122,59139.0,59136.0,0.39859]
[1617386109736,0.67122,59139.0,59136.0,0.145]
[1617386109937,0.67122,59139.0,59136.0,0.095]
[1617386110137,0.0074839,59138.0,59136.0,0.095]
[1617386110337,0.14,59137.0,59135.0,0.387277]
[1617386110538,0.81122,59137.0,59135.0,0.387277]
[1617386111138,0.67122,59137.0,59135.0,0.387277]
[1617386111542,0.67122,59137.0,59135.0,1.387277]
[1617386111741,0.67122,59137.0,59136.0,0.1]
[1617386112144,0.67122,59137.0,59136.0,0.699865]
[1617386112355,0.67122,59137.0,59136.0,0.929865]
[1617386114752,0.66622,59137.0,59136.0,0.929865]
[1617386116798,0.66622,59137.0,59136.0,0.699865]
[1617386117001,0.66622,59137.0,59136.0,0.599865]
[1617386117200,0.66622,59137.0,59136.0,0.346281]
[1617386118410,0.66622,59137.0,59136.0,0.496281]
[1617386119011,0.66622,59137.0,59136.0,0.749867]
[1617386119208,0.66622,59137.0,59136.0,0.979867]
[1617386120432,0.66622,59137.0,59136.0,0.633586]
[1617386121460,0.66622,59137.0,59136.0,0.403586]
[1617386122063,1.56011669,59137.0,59136.0,0.403586]
[1617386122268,1.56011669,59137.0,59136.0,0.253586]
[1617386123684,1.56011669,59137.0,59136.0,0.403586]
[1617386123885,1.86011669,59137.0,59136.0,0.15]
[1617386124085,1.86011669,59137.0,59136.0,0.1]
[1617386124483,2.20976669,59137.0,59136.0,0.1]
[1617386125687,1.90976669,59137.0,59136.0,0.1]
[1617386126694,1.90976669,59137.0,59136.0,1.38]
[1617386126892,1.90976669,59137.0,59136.0,1.43]
[1617386127291,1.90976669,59137.0,59136.0,2.18595659]
[1617386127689,1.90976669,59137.0,59136.0,0.90595659]
[1617386127895,1.56011669,59137.0,59136.0,1.042277]
[1617386128307,1.56011669,59137.0,59136.0,0.992277]
[1617386128507,1.56011669,59137.0,59136.0,0.487277]
[1617386128708,1.56011669,59137.0,59136.0,0.482277]
[1617386129110,1.56011669,59137.0,59136.0,0.387277]
[1617386129513,2.13631009,59137.0,59135.0,1.01]
[1617386130309,1.90131009,59137.0,59136.0,0.353601]
[1617386131338,1.90131009,59137.0,59136.0,0.352701]
[1617386131539,1.55166009,59137.0,59136.0,0.352701]
[1617386131739,1.85166009,59137.0,59136.0,0.352701]
[1617386132142,1.85166009,59137.0,59136.0,0.253601]
[1617386133245,1.55166009,59137.0,59136.0,0.253601]
[1617386133473,1.55166009,59137.0,59136.0,2.082601]
[1617386133669,1.55166009,59137.0,59136.0,2.182601]
[1617386133869,1.55166009,59137.0,59136.0,2.877601]
[1617386134071,1.55166009,59137.0,59136.0,1.007601]
[1617386134269,1.55166009,59137.0,59136.0,0.403601]
[1617386134470,1.54166009,59137.0,59136.0,1.273601]
[1617386134868,1.54166009,59137.0,59136.0,0.403601]
[1617386135067,1.54166009,59137.0,59136.0,0.790878]
[1617386135468,1.54166009,59137.0,59136.0,1.440878]
[1617386135670,1.54166009,59137.0,59136.0,0.403601]
[1617386136097,1.54914405,59137.0,59136.0,0.403601]
[1617386136294,1.77914405,59137.0,59136.0,0.403601]
[1617386138297,1.77914405,59137.0,59136.0,0.253601]
[1617386138497,1.77914405,59137.0,59136.0,0.353601]
[1617386139540,1.77914405,59137.0,59136.0,0.253601]
[1617386139742,1.77914405,59137.0,59136.0,0.353601]
[1617386140143,1.77914405,59137.0,59136.0,0.348601]
[1617386140743,1.77914405,59137.0,59136.0,0.343601]
[1617386140943,1.77914405,59137.0,59136.0,0.243601]
[1617386141144,2.12879405,59137.0,59136.0,0.343601]
[1617386142050,1.77914405,59137.0,59136.0,0.343601]
[1617386143249,1.77914405,59137.0,59136.0,0.243601]
[1617386143449,1.77914405,59137.0,59136.0,0.343601]
[1617386144477,1.77914405,59137.0,59136.0,0.243601]
[1617386144677,1.77914405,59137.0,59136.0,0.343601]
[1617386145676,2.12879405,59137.0,59136.0,0.243601]
[1617386145882,2.12879405,59137.0,59136.0,0.343601]
[1617386147110,2.12879405,59137.0,59136.0,0.243601]
[1617386147313,2.12879405,59137.0,59136.0,0.343601]
[1617386147510,1.89879405,59137.0,59136.0,0.343601]
[1617386147907,1.54914405,59137.0,59136.0,0.343601]
[1617386148507,1.54914405,59137.0,59136.0,0.243601]
[1617386148707,1.54914405,59137.0,59136.0,0.343601]
[1617386149527,1.53914405,59137.0,59136.0,0.343601]
[1617386149927,1.70414405,59137.0,59136.0,0.343601]
[1617386150326,1.53914405,59137.0,59136.0,0.343601]
[1617386150533,1.53914405,59137.0,59136.0,0.203601]
[1617386151950,1.53914405,59137.0,59136.0,0.253601]
[1617386152152,1.78414405,59137.0,59136.0,0.253601]
[1617386152354,1.78414405,59137.0,59136.0,0.203601]
[1617386152949,1.76914405,59137.0,59136.0,0.203601]
[1617386155180,1.76914405,59137.0,59135.0,0.01]
[1617386155777,1.52414405,59137.0,59135.0,0.01]
[1617386156786,1.52414405,59137.0,59135.0,0.263618]
[1617386157205,1.52414405,59137.0,59135.0,0.313618]
[1617386157408,1.52414405,59137.0,59135.0,0.263618]
[1617386157609,1.52414405,59137.0,59135.0,0.313618]
[1617386158205,1.52414405,59137.0,59136.0,0.1]
[1617386159012,1.87379405,59137.0,59136.0,0.1]
[1617386163848,2.20879405,59137.0,59136.0,0.1]
[1617386164449,2.20879405,59137.0,59136.0,0.114857]
[1617386164881,2.20879405,59137.0,59136.0,0.014857]
[1617386167192,2.20379405,59137.0,59136.0,0.014857]
[1617386168600,1.85414405,59137.0,59136.0,0.014857]
[1617386168798,1.51914405,59137.0,59136.0,0.014857]
[1617386173856,1.51914405,59137.0,59136.0,0.167857]
[1617386174055,1.51914405,59137.0,59136.0,0.467857]
[1617386174254,1.51914405,59137.0,59136.0,0.567857]
[1617386174855,1.51914405,59137.0,59136.0,0.414857]
[1617386175055,1.51914405,59137.0,59136.0,1.184857]
[1617386175257,1.51914405,59137.0,59136.0,0.414857]
[1617386175672,1.51914405,59137.0,59136.0,0.802134]
[1617386176075,1.51914405,59137.0,59136.0,1.612134]
[1617386176680,1.51914405,59137.0,59136.0,0.802134]
[1617386177077,1.51914405,59137.0,59136.0,1.812134]
[1617386177476,1.51914405,59137.0,59136.0,0.802134]
[1617386180940,1.51914405,59137.0,59136.0,0.502134]
[1617386181243,1.51914405,59137.0,59136.0,0.114857]
[1617386184883,1.51914405,59137.0,59136.0,0.694857]
[1617386185285,1.51914405,59137.0,59136.0,0.924857]
[1617386185684,1.51914405,59137.0,59136.0,0.114857]
[1617386188907,1.51914405,59137.0,59136.0,0.664857]
[1617386189110,1.51914405,59137.0,59136.0,0.114857]
[1617386189510,1.82414405,59137.0,59136.0,0.114857]
[1617386191932,2.17379405,59137.0,59136.0,0.114857]
[1617386192727,2.17379405,59137.0,59136.0,0.07571384]
[1617386194360,2.16879405,59137.0,59136.0,0.07571384]
[1617386196995,1.51414405,59137.0,59136.0,0.07571384]
[1617386198395,1.50414405,59137.0,59136.0,0.07571384]
[1617386198793,1.66914405,59137.0,59136.0,0.07571384]
[1617386199209,1.50414405,59137.0,59136.0,0.07571384]
[1617386199405,1.50414405,59137.0,59136.0,0.48415918]
[1617386199806,1.50414405,59137.0,59136.0,1.14571384]
[1617386200007,1.50414405,59137.0,59136.0,1.50571384]
[1617386200205,1.50414405,59137.0,59136.0,0.43571384]
[1617386200407,1.50414405,59137.0,59136.0,0.07571384]
[1617386201206,1.50414405,59137.0,59136.0,0.46299084]
[1617386201846,1.50414405,59137.0,59136.0,1.05571384]
[1617386202250,1.50414405,59137.0,59136.0,0.07571384]
[1617386202646,1.64914405,59137.0,59136.0,0.07571384]
[1617386204860,1.99879405,59137.0,59136.0,0.07571384]
[1617386207282,1.99879405,59137.0,59135.0,0.363618]
[1617386207486,1.99879405,59137.0,59136.0,0.1]
[1617386208684,1.99879405,59137.0,59135.0,0.363618]
[1617386208881,0.395,59136.0,59135.0,0.363618]
[1617386209083,0.9977634,59136.0,59135.0,1.363618]
[1617386209718,0.9977634,59136.0,59135.0,1.263618]
[1617386209922,1.85842874,59136.0,59135.0,1.01]
[1617386210317,2.14265882,59136.0,59135.0,1.01]
[1617386210516,1.73421348,59136.0,59135.0,1.01]
[1617386210714,3.8499834,59136.0,59135.0,1.01]
[1617386210915,4.30055262,59136.0,59135.0,1.01]
[1617386211533,4.20055262,59136.0,59135.0,1.01]
[1617386211936,4.27280127,59136.0,59135.0,1.01]
[1617386212134,4.27280127,59136.0,59135.0,1.0]
[1617386212533,4.27280127,59136.0,59135.0,1.1]